Cogmind - Beta 11.1 @@@ ROGUE MODE // 2022.11.16 @ 18:02:18 Player: BRiNK Result: Destroyed by Fusion Bomb Trap Performance ------------- Evolutions (7) 3500 Regions Visited (10) 2000 Robots Destroyed (9) 45 Value Destroyed (458) 458 Prototype IDs (5) 100 Alien Tech Used (0) 0 Bonus (570) 570 TOTAL SCORE: 6673 Bonus ------- Pacifist 270 Aligned with FarCom 300 Cogmind --------- Core Integrity 0/1300 Matter 29/300 Energy 98/100 System Corruption 9% Temperature Cool (0) Movement Core (50) Location -3/Research Parts ------- > --- POWER (4) -------- (None) > --- PROPULSION (5) --- (None) > --- UTILITY (8) ------ (None) > --- WEAPON (4) ------- (None) > --- INVENTORY (5) ---- Improved Gyrokinetic Inverter Transmission Jammer Latent Energy Streamer Heavy Ion Cannon Improved Grenade Launcher Peak State ------------ > --- POWER ------------ Cooled Deuterium Engine Fusion Compressor > --- PROPULSION ------- Gravmag Array Combat Gravmag System > --- UTILITY ---------- Improved Cryofiber Web Recoil Nullifier Kinecellerator Transmission Jammer ECM Suite Advanced ECM Suite > --- WEAPON ----------- Latent Energy Streamer Heavy Ion Cannon > --- INVENTORY -------- Improved Grenade Launcher [Rating: 64] Favorites ----------- Power Micro Nuclear Core Engine Light Ion Engine Power Core Micro Nuclear Core Propulsion VTOL Module Hover Unit Gravmag Array Flight Unit VTOL Module Utility ECM Suite Device ECM Suite Storage Medium Storage Unit Processor Visual Processing Unit Protection Experimental Power Shielding Weapon Light Assault Rifle Energy Gun EM Pulse Gun Energy Cannon Latent Energy Streamer Ballistic Gun Light Assault Rifle Launcher Grenade Launcher Build | -11 -10 -10 -10 -9 -8 -7 -6 -5 -4 -3 ------- Run | Scr Mat Min Exi Min Mat Fac Fac Fac Fac Res Slots Evolved 14 | . . . . . 4 2 2 2 2 2 Power 3 | . . . . . . 1 1 1 . . Propulsion 3 | . . . . . 2 . . . 1 . Utility 6 | . . . . . 2 . . 1 1 2 Weapon 2 | . . . . . . 1 1 . . . Parts Attached 41 | 3 . . 1 1 14 5 5 8 4 . Power 7 | 1 . . . . 2 1 . 3 . . Engine 2 | 1 . . . . . . . 1 . . Core 5 | . . . . . 2 1 . 2 . . Reactor . | . . . . . . . . . . . Propulsion 10 | . . . . . 6 . 1 2 1 . Treads . | . . . . . . . . . . . Leg . | . . . . . . . . . . . Wheel . | . . . . . . . . . . . Hover 4 | . . . . . 1 . 1 1 1 . Flight 6 | . . . . . 5 . . 1 . . Utility 14 | . . . . 1 3 2 4 2 2 . Device 11 | . . . . . 2 2 3 2 2 . Storage 1 | . . . . . 1 . . . . . Processor 1 | . . . . 1 . . . . . . Hackware . | . . . . . . . . . . . Protection 1 | . . . . . . . 1 . . . Artifact . | . . . . . . . . . . . Weapon 10 | 2 . . 1 . 3 2 . 1 1 . Energy Gun 1 | . . . . . 1 . . . . . Energy Cannon 5 | . . . 1 . 1 1 . 1 1 . Ballistic Gun 3 | 2 . . . . 1 . . . . . Ballistic Cannon . | . . . . . . . . . . . Launcher 1 | . . . . . . 1 . . . . Special Weapon . | . . . . . . . . . . . Impact Weapon . | . . . . . . . . . . . Slashing Weapon . | . . . . . . . . . . . Piercing Weapon . | . . . . . . . . . . . Special Melee Weapon . | . . . . . . . . . . . Unidentified Prototypes 5 | . . . 1 . 1 . 1 2 . . Parts Lost 14 | . . . . . 2 8 . . 2 2 Power 2 | . . . . . 1 . . . 1 . Propulsion 5 | . . . . . . 4 . . . 1 Utility 4 | . . . . . . 2 . . 1 1 Weapon 3 | . . . . . 1 2 . . . . Highest Loss Streak 8 | . . . . . 2 8 . . 2 2 To Critical Strikes . | . . . . . . . . . . . Average Slot Usage (%) 48 | . 42 42 42 56 59 71 27 42 50 23 Engine 5 | . 14 14 14 14 3 . . 4 5 1 Core 3 | . . . . . 5 11 . 1 2 . Hover 3 | . . . . . . . 3 6 12 6 Flight 4 | . . . . . 16 17 . . . . Device 14 | . . . . . 7 14 21 27 27 14 Storage 1 | . . . . . 3 7 . . . . Processor 2 | . . . . 13 9 4 . . . . Energy Cannon 4 | . . . 10 14 2 6 . . 1 . Ballistic Gun 6 | . 28 28 17 14 12 7 . . . . Naked Turns 88 | . . . . . . . . . . 88 Heaviest Build 46 | 6 6 6 15 15 24 36 36 33 46 22 Greatest Support 48 | 3 3 3 3 3 25 25 20 34 48 48 Greatest Overweight (x) 11 | 1 1 1 4 4 4 11 11 . 1 1 Average Overweight (x) . | . 1 1 2 4 . 2 . . . . Largest Inventory Capacity 10 | 5 5 5 5 5 10 10 10 5 5 5 Average Capacity 6 | 5 5 5 5 5 6 10 5 5 5 5 Most Carried 6 | 4 2 3 4 5 5 6 5 5 5 5 Average Carried 3 | 1 1 2 3 4 4 3 4 3 3 4 Final Capacity 10 | 5 5 5 5 5 10 10 5 5 5 5 Final Carried 5 | 1 2 3 4 4 3 2 5 2 5 5 Class Distribution -------------------- 52% | Mutant 44% | Infiltrator-Mutant Dominant Class ---------------- Mutant | -10/Materials Mutant | -10/Mines Mutant | -10/Exiles Mutant | -9/Mines Mutant | -8/Materials Mutant | -7/Factory Infiltrator-Mutant | -6/Factory Infiltrator-Mutant | -5/Factory Infiltrator-Mutant | -4/Factory Mutant | -3/Research Resources | -11 -10 -10 -10 -9 -8 -7 -6 -5 -4 -3 ----------- Run | Scr Mat Min Exi Min Mat Fac Fac Fac Fac Res Matter Collected 382 | 230 . . . 14 98 25 . . . 15 Remotely . | . . . . . . . . . . . Salvage Created 550 | . . . . . 161 182 . . 207 . Parts 20 | . . . . . 9 9 . . 2 . Haulers Intercepted . | . . . . . . . . . . . Recyclers Shooed . | . . . . . . . . . . . Parts Field Recycled . | . . . . . . . . . . . Retrieved Matter . | . . . . . . . . . . . Parts Self-Destructed . | . . . . . . . . . . . Prevented . | . . . . . . . . . . . Kills | -11 -10 -10 -10 -9 -8 -7 -6 -5 -4 -3 ------- Run | Scr Mat Min Exi Min Mat Fac Fac Fac Fac Res Combat Hostiles Destroyed 8 | . . . . . 3 4 . . 1 . Guns 4 | . . . . . 3 1 . . . . Cannons 1 | . . . . . . 1 . . . . AOE 3 | . . . . . . 2 . . 1 . Classes Destroyed 6 | . . . . . 2 3 . . 1 . Builder 1 | . . . . . . 1 . . . . Grunt 3 | . . . . . 2 1 . . . . Brawler 1 | . . . . . . 1 . . . . Duelist 2 | . . . . . 1 1 . . . . Hunter 1 | . . . . . . . . . 1 . Programmer 1 | . . . . . . 1 . . . . Best Kill Streak 4 | . . . . . 3 4 . . 1 . Combat Bots Only 3 | . . . . . 3 3 . . 1 . Max Kills in Single Turn 1 | . . . . . 1 1 . . 1 . Gunslinging . | . . . . . . . . . . . Exploded 1 | . . . . . . 1 . . 1 . Melee . | . . . . . . . . . . . Uniques/NPCs Destroyed . | . . . . . . . . . . . Combat | -11 -10 -10 -10 -9 -8 -7 -6 -5 -4 -3 -------- Run | Scr Mat Min Exi Min Mat Fac Fac Fac Fac Res Damage Taken 2830 | . 10 . . 3 302 598 . 23 421 1473 Core 1635 | . 10 . . . 92 146 . . 55 1332 Absorbed by Shields . | . . . . . . . . . . . Core Remaining (%) 93 | 100 . . . 96 83 79 100 100 95 . Volleys Fired 26 | . . 1 . . 11 12 . . 2 . Largest 3 | . . 2 . . 2 3 . . 1 . Hottest 125 | . . 40 . . 60 125 . . 65 . Shots Fired 41 | . . 2 . . 17 20 . . 2 . Gun 31 | . . 2 . . 17 12 . . . . Cannon 7 | . . . . . . 5 . . 2 . Launcher 3 | . . . . . . 3 . . . . Special . | . . . . . . . . . . . Kinetic 25 | . . 2 . . 11 12 . . . . Thermal 5 | . . . . . . 4 . . 1 . Explosive 3 | . . . . . . 3 . . . . Electromagnetic 8 | . . . . . 6 1 . . 1 . Robot Hit Streak 8 | . . 2 . . 7 8 . . . . Robot Miss Streak 2 | . . . . . 1 2 . . . . Penetration Max . | . . . . . . . . . . . Secondary Targets . | . . . . . . . . . . . Shots Hit Robots 30 | . . 2 . . 13 15 . . . . Core Hits 31 | . . 1 . . 9 12 . . 8 1 Critical Kills . | . . . . . . . . . . . Critical Parts Destroyed . | . . . . . . . . . . . Critical Strikes . | . . . . . . . . . . . Melee Attacks . | . . . . . . . . . . . Impact . | . . . . . . . . . . . Slashing . | . . . . . . . . . . . Piercing . | . . . . . . . . . . . Sneak Attacks . | . . . . . . . . . . . Combat Hostiles . | . . . . . . . . . . . Follow-up Attacks . | . . . . . . . . . . . Damage Inflicted 1353 | . . 17 . 7 157 691 . . 465 16 Guns 245 | . . 17 . . 157 71 . . . . Cannons 93 | . . . . . . 93 . . . . Explosions 970 | . . . . . . 527 . . 443 . Melee . | . . . . . . . . . . . Ramming 45 | . . . . 7 . . . . 22 16 Kinetic 186 | . . 17 . . 98 71 . . . . Thermal 87 | . . . . . . 87 . . . . Explosive 328 | . . . . . . 328 . . . . Electromagnetic 707 | . . . . . 59 205 . . 443 . Impact . | . . . . . . . . . . . Slashing . | . . . . . . . . . . . Piercing . | . . . . . . . . . . . Highest Corruption 14 | . . . . . . 14 . . 6 9 Average Corruption 8 | . . . . . . 13 . . 4 5 Corruption Purged . | . . . . . . . . . . . Corruption Blocked . | . . . . . . . . . . . Effects 21 | . . . . . . 14 . . 5 2 Message Errors 7 | . . . . . . 4 . . 2 1 Matter Fused 6 | . . . . . . 4 . . 1 1 Heat Flow Errors 3 | . . . . . . 2 . . 1 . Data Loss (minor) 2 | . . . . . . 1 . . 1 . Alerts 2 | . . . . . . 2 . . . . Weapon Failures 1 | . . . . . . 1 . . . . Overload Shots . | . . . . . . . . . . . Overflow Damage 25 | . . . . . . 25 . . . . Projectiles . | . . . . . . . . . . . Explosions 25 | . . . . . . 25 . . . . Melee . | . . . . . . . . . . . Knockbacks . | . . . . . . . . . . . Impact . | . . . . . . . . . . . Kinetic . | . . . . . . . . . . . Secondary . | . . . . . . . . . . . Self-Inflicted Damage 223 | . . . . 3 . 202 . . 10 8 Shots 4 | . . . . . . 4 . . . . Rammed 7 | . . . . 2 . . . . 2 3 Targets Rammed 7 | . . . . 2 . . . . 2 3 Kicked . | . . . . . . . . . . . Crushed . | . . . . . . . . . . . Highest Temperature 396 | . . . . . . 222 . 396 237 . Average Temperature 92 | . . . . . . 59 . 207 126 . Received Heat Transfer 216 | . 6 . . . 117 27 . . 30 36 Effects 1 | . . . . . . . . . 1 . Interference 1 | . . . . . . . . . 1 . Siege Activations . | . . . . . . . . . . . Robots Corrupted 1 | . . . . . . 1 . . . . Combat Hostiles . | . . . . . . . . . . . Parts Fried 2 | . . . . . . 1 . . 1 . Impact Corruptions . | . . . . . . . . . . . Robots Melted . | . . . . . . . . . . . Combat Hostiles . | . . . . . . . . . . . Parts Melted 1 | . . . . . . 1 . . . . Heat Transferred 111 | . . . . . . 111 . . . . Parts Sabotaged . | . . . . . . . . . . . Parts Stolen . | . . . . . . . . . . . Parts Stripped . | . . . . . . . . . . . Power Chain Reactions . | . . . . . . . . . . . Missiles Intercepted . | . . . . . . . . . . . Latent Energy Used 387 | . . . . . . 187 . . 200 . LE Corruption 6 | . . . . . . 3 . . 3 . Alert | -11 -10 -10 -10 -9 -8 -7 -6 -5 -4 -3 ------- Run | Scr Mat Min Exi Min Mat Fac Fac Fac Fac Res Peak Influence 167 | . 15 5 . . 110 81 39 30 167 45 Initial 49 | . . 5 . . . 49 39 . 14 7 Average 35 | . 4 5 . . 37 60 37 12 68 8 Maximum Alert Level . | . . . . . . . . . . . Low Security (%) 100 | 100 100 100 . 100 100 100 100 100 100 100 Level 1 . | . . . . . . . . . . . Level 2 . | . . . . . . . . . . . Level 3 . | . . . . . . . . . . . Level 4 . | . . . . . . . . . . . Level 5 . | . . . . . . . . . . . High Security . | . . . . . . . . . . . Max Security . | . . . . . . . . . . . Squads Dispatched 3 | . . . . . . 2 . . . 1 Investigation . | . . . . . . . . . . . Extermination 2 | . . . . . . 1 . . . 1 Reinforcement 1 | . . . . . . 1 . . . . Assault . | . . . . . . . . . . . Garrison . | . . . . . . . . . . . Intercept . | . . . . . . . . . . . Searches Triggered . | . . . . . . . . . . . Construction Impeded 1 | . . . . . . 1 . . . . Haulers Reinforced . | . . . . . . . . . . . Active Scanning Responses . | . . . . . . . . . . . Cargo Convoy Interrupts . | . . . . . . . . . . . Stealth | -11 -10 -10 -10 -9 -8 -7 -6 -5 -4 -3 --------- Run | Scr Mat Min Exi Min Mat Fac Fac Fac Fac Res Distress Signals 1 | . . . . . . . . . . 1 Communications Jammed . | . . . . . . . . . . . Distress Signals . | . . . . . . . . . . . Times Spotted 44 | . 2 . . . 11 4 . 1 13 13 Peak Tracking Total 13 | . 3 . . . 6 3 . 1 5 13 Tactical Retreats 7 | . . . . . 1 . . 1 4 1 Traps | -11 -10 -10 -10 -9 -8 -7 -6 -5 -4 -3 ------- Run | Scr Mat Min Exi Min Mat Fac Fac Fac Fac Res Traps Triggered 8 | . . . . . . 2 1 . 1 4 Indirectly . | . . . . . . . . . . . Trap Hack Attempts . | . . . . . . . . . . . Triggered . | . . . . . . . . . . . Disarmed . | . . . . . . . . . . . Reprogrammed . | . . . . . . . . . . . Reused . | . . . . . . . . . . . Traps Extracted . | . . . . . . . . . . . Installed . | . . . . . . . . . . . Triggered . | . . . . . . . . . . . Machines | -11 -10 -10 -10 -9 -8 -7 -6 -5 -4 -3 ---------- Run | Scr Mat Min Exi Min Mat Fac Fac Fac Fac Res Machines Disabled 3 | . . . . . . 2 . . 1 . Max in Single Turn 2 | . . . . . . 2 . . 1 . Machines Sabotaged . | . . . . . . . . . . . Garrisons Compromised . | . . . . . . . . . . . Overloaded Fab Kills . | . . . . . . . . . . . Hacking | -11 -10 -10 -10 -9 -8 -7 -6 -5 -4 -3 --------- Run | Scr Mat Min Exi Min Mat Fac Fac Fac Fac Res Machines Accessed 3 | . . . . . . . 1 1 . 1 Terminals 1 | . . . . . . . . 1 . . Fabricators 2 | . . . . . . . 1 . . 1 Repair Stations . | . . . . . . . . . . . Recycling Units . | . . . . . . . . . . . Scanalyzers . | . . . . . . . . . . . Garrison Access . | . . . . . . . . . . . Total Hacks 6 | . . . . . . . 1 2 . 3 Successful 2 | . . . . . . . 1 . . 1 Failed 4 | . . . . . . . . 2 . 2 Catastrophic 1 | . . . . . . . . 1 . . Database Lockouts . | . . . . . . . . . . . Manual 3 | . . . 1 . . . . 2 . . Terminals 2 | . . . . . . . . 2 . . Fabricators 4 | . . . . . . . 1 . . 3 Repair Stations . | . . . . . . . . . . . Recycling Units . | . . . . . . . . . . . Scanalyzers . | . . . . . . . . . . . Garrison Access . | . . . . . . . . . . . Terminal Hacks . | . . . . . . . . . . . Fabricator Hacks 2 | . . . . . . . 1 . . 1 Network Status 2 | . . . . . . . 1 . . 1 Repair Station Hacks . | . . . . . . . . . . . Recycling Unit Hacks . | . . . . . . . . . . . Scanalyzer . | . . . . . . . . . . . Garrison Access Hacks . | . . . . . . . . . . . Unauthorized Hacks . | . . . . . . . . . . . Terminals . | . . . . . . . . . . . Fabricators . | . . . . . . . . . . . Repair Stations . | . . . . . . . . . . . Recycling Units . | . . . . . . . . . . . Scanalyzers . | . . . . . . . . . . . Garrison Access . | . . . . . . . . . . . Data Cores Recovered . | . . . . . . . . . . . Used . | . . . . . . . . . . . Hacking Detections 2 | . . . . . . . . 1 . 1 Full Trace Events . | . . . . . . . . . . . Feedback Events . | . . . . . . . . . . . Feedback Blocked . | . . . . . . . . . . . Robot Schematics Acquired . | . . . . . . . . . . . Robots Built . | . . . . . . . . . . . Authchips . | . . . . . . . . . . . Time . | . . . . . . . . . . . Total Robot Build Rating . | . . . . . . . . . . . Part Schematics Acquired . | . . . . . . . . . . . Parts Built . | . . . . . . . . . . . Authchips . | . . . . . . . . . . . Time . | . . . . . . . . . . . Total Part Build Rating . | . . . . . . . . . . . Parts Repaired . | . . . . . . . . . . . Time . | . . . . . . . . . . . Parts Recycled . | . . . . . . . . . . . Recycled Matter . | . . . . . . . . . . . Retrieved Matter . | . . . . . . . . . . . Retrieved Components . | . . . . . . . . . . . Parts Scanalyzed . | . . . . . . . . . . . Part Schematics Acquired . | . . . . . . . . . . . Parts Damaged . | . . . . . . . . . . . Bothacking | -11 -10 -10 -10 -9 -8 -7 -6 -5 -4 -3 ------------ Run | Scr Mat Min Exi Min Mat Fac Fac Fac Fac Res Used RIF Installer . | . . . . . . . . . . . Robots Hacked . | . . . . . . . . . . . Non-combat . | . . . . . . . . . . . Combat . | . . . . . . . . . . . Robot Hacks Applied . | . . . . . . . . . . . Relay Couplers Released . | . . . . . . . . . . . Fabnet Peak Effective % . | . . . . . . . . . . . Robots Rewired . | . . . . . . . . . . . Allies Hacked 2 | . . . . . . . . . . 2 Hacks Repelled . | . . . . . . . . . . . Allies | -11 -10 -10 -10 -9 -8 -7 -6 -5 -4 -3 -------- Run | Scr Mat Min Exi Min Mat Fac Fac Fac Fac Res Total Allies 3 | . . . . . . . . . 3 . Largest Group 3 | . . . . . . . . . 3 3 Highest-Rated Group 138 | . . . . . . . . . 138 138 Highest-Rated Ally 46 | . . . . . . . . . 46 46 Total Orders . | . . . . . . . . . . . Ally Attacks 10 | . . . . . . . . . 2 8 Total Damage 221 | . . . . . . . . . 39 182 Kills . | . . . . . . . . . . . Allies Corrupted 1 | . . . . . . . . . . 1 Allies Melted . | . . . . . . . . . . . Intel | -11 -10 -10 -10 -9 -8 -7 -6 -5 -4 -3 ------- Run | Scr Mat Min Exi Min Mat Fac Fac Fac Fac Res Robot Analysis Total . | . . . . . . . . . . . Derelict Logs Recovered 2 | . . 1 . 1 . . . . . . Drone Launches . | . . . . . . . . . . . Drone Recoveries . | . . . . . . . . . . . Exploration | -11 -10 -10 -10 -9 -8 -7 -6 -5 -4 -3 ------------- Run | Scr Mat Min Exi Min Mat Fac Fac Fac Fac Res Turns Passed 3547 | 39 45 75 422 360 239 777 414 285 486 405 Spaces Moved 3256 | 39 45 72 236 142 301 395 638 350 586 452 Core 1026 | 39 45 72 236 142 51 54 217 . . 170 Treads . | . . . . . . . . . . . Legs . | . . . . . . . . . . . Wheels . | . . . . . . . . . . . Hover 1639 | . . . . . . . 421 350 586 282 Flight 591 | . . . . . 250 341 . . . . Fastest Speed 26 | 50 100 100 100 250 26 26 50 60 65 50 Average Speed 92 | 83 100 100 178 250 55 154 60 61 73 58 Slowest Speed 600 | 100 100 100 250 250 250 600 600 66 126 110 Overloaded Moves . | . . . . . . . . . . . Propulsion Burnouts . | . . . . . . . . . . . Robots Hopped 1 | . . . . . . 1 . . . . Cave-ins Triggered . | . . . . . . . . . . . Exploration Rate (%) 24 | 4 14 25 66 49 34 15 18 13 17 13 Regions Visited 10 Branch Regions 3 Pre-discovered Areas . | . . . . . . . . . . . Known Exits Taken . | . . . . . . . . . . . Unknown Exits Taken 10 | 1 1 1 1 1 1 1 1 1 1 . Scrap Searched 2 | . . 1 . 1 . . . . . . Spaces Dug . | . . . . . . . . . . . Terrain Destroyed 61 | . . . . . . 57 . . 4 . Melee . | . . . . . . . . . . . Projectile . | . . . . . . . . . . . AOE 61 | . . . . . . 57 . . 4 . Terrain Rammed . | . . . . . . . . . . . Walls Destroyed . | . . . . . . . . . . . Machines Disabled . | . . . . . . . . . . . Actions | -11 -10 -10 -10 -9 -8 -7 -6 -5 -4 -3 --------- Run | Scr Mat Min Exi Min Mat Fac Fac Fac Fac Res Total 3764 | 45 45 73 237 145 352 549 664 421 640 593 Wait 395 | . . . . . 19 136 6 57 41 136 Move 3244 | 38 44 71 235 141 300 392 637 349 585 452 Hop 1 | . . . . . . 1 . . . . Pick Up 23 | 4 1 1 1 1 4 3 1 3 3 1 Fast Attach 14 | . . . . . 7 . 4 2 1 . Attach 22 | 3 . . . 1 4 4 1 6 3 . Detach 8 | . . . . . . . 4 1 3 . Swap 5 | . . . 1 . 3 1 . . . . Drop 12 | . . . . . 4 . 4 3 . 1 Fire 26 | . . 1 . . 11 12 . . 2 . Melee . | . . . . . . . . . . . Ram 7 | . . . . 2 . . . . 2 3 Kick . | . . . . . . . . . . . Crush . | . . . . . . . . . . . Escape Stasis 7 | . . . . . . . 7 . . . Rewire . | . . . . . . . . . . . Trap . | . . . . . . . . . . . Miscellaneous . | . . . . . . . . . . . Route ------- -11/Scrapyard -10/Materials -10/Mines -10/Exiles -9/Mines -8/Materials -7/Factory (discovered 2 exits: *Fac / Sto) -6/Factory -5/Factory -4/Factory -3/Research History --------- Turn | Location | Event 16 | -11/Scrapyard | Discovered new exit (range 15) 40 | -11/Scrapyard | Entered Materials 75 | -10/Materials | Discovered new exit (range 10) 85 | -10/Materials | Entered Mines 156 | -10/Mines | Deemed a non-threat by the Exiles lab entrance 156 | -10/Mines | Discovered new exit (range 5) 160 | -10/Mines | Entered Exiles 185 | -10/Exiles | Met 8R-AWN 201 | -10/Exiles | Met EX-HEX 232 | -10/Exiles | Met EX-BIN 243 | -10/Exiles | Aligned with FarCom system 244 | -10/Exiles | Given EX-Vault access code 268 | -10/Exiles | Opened EX-Vault 272 | -10/Exiles | Found Prototype Energy Cannon 273 | -10/Exiles | Identified Latent Energy Streamer 313 | -10/Exiles | Build established: Mutant 327 | -10/Exiles | Warned to stay clear of 0b10 Research branches 407 | -10/Exiles | Met EX-DEC 547 | -10/Exiles | Discovered new exit (range 14) 582 | -10/Exiles | Left Exiles lab with Latent Energy Streamer 582 | -10/Exiles | Entered Mines 694 | -9/Mines | Learned Materials stockpile data 882 | -9/Mines | Discovered new exit (range 18) 942 | -9/Mines | Entered Materials 942 | -8/Materials | Evolved 4 slots: Propulsion x2, Utility x2 1175 | -8/Materials | Discovered new exit (range 17) 1181 | -8/Materials | Entered Factory 1181 | -7/Factory | Evolved 2 slots: Power x1, Weapon x1 1182 | -7/Factory | Identified exit to Storage 1637 | -7/Factory | System corruption reached 10% 1667 | -7/Factory | Lost 8 parts (4n2u2w) 1868 | -7/Factory | Discovered new exit (range 15) 1945 | -7/Factory | Build established: Infiltrator-Mutant 1958 | -7/Factory | Entered another Factory area 1958 | -6/Factory | Evolved 2 slots: Power x1, Weapon x1 2349 | -6/Factory | Discovered new exit (range 11) 2372 | -6/Factory | Entered another Factory area 2372 | -5/Factory | Evolved 2 slots: Power x1, Utility x1 2654 | -5/Factory | Discovered new exit (range 6) 2657 | -5/Factory | Entered another Factory area 2657 | -4/Factory | Evolved 2 slots: Propulsion x1, Utility x1 2995 | -4/Factory | Allied Derelicts emerged from ambush trap array 3123 | -4/Factory | Discovered new exit (range 7) 3143 | -4/Factory | Entered Research 3143 | -3/Research | Accompanied by 3 allies 3143 | -3/Research | Evolved 2 slots: Utility x2 3448 | -3/Research | P-80 Master assimilated allied NI-O2F(g) 3490 | -3/Research | Spotted B-86 Titan 3518 | -3/Research | Core integrity fell below 50% 3545 | -3/Research | Core integrity fell below 20% 3548 | -3/Research | Destroyed by Fusion Bomb Trap Last Messages --------------- 03452_ Imp. Cryofiber Web blown off. 03452_ Adv. ECM Suite blown off. 03454_ ECM Suite destroyed. 03460_ Gravmag Array destroyed. 03472_ Slammed into P-80 Master. 03481_ U-05 Engineer destroyed. 03484_ Acquired 15 matter. 03485_ K-01 Serf collects debris. 03490_ Slug penetrates Wall. 03494_ PZ1MH0 &W BQ=ZXPRHRNRC%X 03497_ U-05 Engineer builds a Wall. 03512_ System corrupted: Matter fused (-6). 03534_ W-44 Eye sends out distress signal. 03537_ Penetrated by Slug. 03537_ Slug penetrates Wall. 03537_ Penetrated by Slug. 03542_ Slug penetrates Wall. 03546_ Slammed into K-01 Serf. 03548_ Triggered Fusion Bomb Trap. 03548_ An explosion rips through the floor. Map ----- +----------------------------------------------------+ | ????????????????????????????????????????????? | | ##+################# ???????????????????????????? | | ??????????????????????????? | | ?????????????????????????? | | ?????????????????????????? | | ??????????????????????????? | | #???????????????????????????? | | """"""" #???????????????????????????? | | """"""" #???????????????????????????? | | """"""" #???????????????????????????? | | ###?????????????????????????? | | w #?????????????????????????? | | #?????????????????????????? | | ##??????????????????????????? | | ##??????????????????????????? | | #???????????????????????????? | | #???????????????????????????? | | % #???????????????????????????? | | #???????????????????????????? | | ### #???????????????????????????? | | ??####/###"###### #???????????????????????????? | | ?? ###????#BB #???????????????????????????? | | ?? ! ########BB #???????????????????????????? | | ? # p#???????#########???????????? | | ? # p ;##### #?????????? | | [[ # kss @k #?????????? | | [ # s ###### ""???????????? | | # ###########????""" ""???????????? | | # # #??????" R"??????????? | | ########## # #????????????????????????? | | pp| h # """"" #????????????????????????? | | ^ # """"" #????????????? ??????????? | | ^ h# """"" #???????????? #?????????? | | # #??????????? ??????????? | | ######+### # = #?????????? ???????????? | | ???# # # ! #????????? ?????????????? | | ?# # ######+############+#######????????? | | # # * ???????? | | #% =# != ???????? | | ####!! # =![ ???????? | | ???#! # !=* ???????? | | ???# ######## ######+### ####?###??????? | | ???# #??????# ## # #??? ???????? | | ???#######??????# ## # #?? ???????? | | ??????????????? ## # #? ????????? | | ????????????? ## # # ??????????? | | ???????????? ## # # ???????????? | | ??????????? ## # / ????????????? | | ???????????#######+#### # #?????????????? | | ???????????? ????# # #?????????????# | +----------------------------------------------------+ Best States ------------- Heat Dissipation 46 Energy Generation 38 Energy Capacity 310 Matter Stores 300 Matter Capacity 300 Sight Range 18 Terrain Scan Density 10 ECM Strength 2 Jamming Range 12 Additional Mass Support 9 Base Temperature (-) 150 Evasion (%) 64 Recoil Reduction 6 Item Schematics ----------------- None Robot Schematics ------------------ None Fabricated ------------ Nothing Alien Tech Used ----------------- None Achievements -------------- No Signal Challenges ------------ None Game ------ Seed VariableModifiedShredder Manual? 0 Play Time 00:46:06 Cumulative 31.1 hours Start 2022.11.16 @ 17:17:22 End 2022.11.16 @ 18:02:18 Sessions 1 Manual Loads 0 Difficulty Rogue Special Mode None Game No. 36 Rogue 36 Adventurer 0 Explorer 0 Win Type - Total 0 Types 0/0/0/0/0/0/0/0/0 Lore% 24 Gallery% 32 Achievement% 26 Wizard Run 0 Options --------- ASCII 0 Keyboard 0 Movement Mouse Keybinds 0 Fullscreen 1 Font 24/Crisp Map View 76x50 Tactical HUD 1 Map Filters NONE Filters NONE Steam 1 RUN: 45104f41-7ad4-4152-9bb0-0a5513ca14ea